bitfinex/quotes_BTCUSD_20241119
["timestamp","ask_amount","ask_price","bid_price","bid_amount"]
[1731992374322,0.0258545,91508.0,91507.0,0.437121]
[1731992374323,0.0008545,91508.0,91507.0,0.437121]
[1731992374539,0.0028545,91508.0,91507.0,0.444121]
[1731992374966,0.0028545,91508.0,91507.0,0.437121]
[1731992375174,0.0048545,91508.0,91507.0,0.55318355]
[1731992375381,0.0048545,91508.0,91507.0,0.57618355]
[1731992376226,0.0028545,91508.0,91507.0,0.57618355]
[1731992376436,0.0038545,91508.0,91507.0,0.58218355]
[1731992377887,0.0038545,91508.0,91507.0,0.58418355]
[1731992380119,0.0038545,91508.0,91507.0,0.68218355]
[1731992380326,0.0038545,91508.0,91507.0,0.68418355]
[1731992380901,0.0028545,91508.0,91507.0,0.67818355]
[1731992381302,0.0048545,91508.0,91507.0,0.69818355]
[1731992383454,0.0058545,91508.0,91507.0,0.70918355]
[1731992383665,0.0058545,91508.0,91507.0,0.8553762]
[1731992384095,0.0028545,91508.0,91507.0,0.8453762]
[1731992384535,0.0038545,91508.0,91507.0,0.8733762]
[1731992384746,0.0008545,91523.0,91522.0,0.134263]
[1731992384977,0.0008545,91523.0,91522.0,0.7952422]
[1731992385185,5e-07,91523.0,91522.0,0.89065514]
[1731992385425,5e-07,91523.0,91522.0,0.89065602]
[1731992385636,5e-07,91523.0,91522.0,0.7932422]
[1731992385830,5e-07,91523.0,91522.0,0.8926315]
[1731992386194,5e-07,91523.0,91522.0,0.9366315]
[1731992386195,0.0020005,91523.0,91522.0,0.9366315]
[1731992386405,0.0010005,91523.0,91522.0,0.9176315]
[1731992386644,0.0010005,91523.0,91522.0,0.8222422]
[1731992386856,0.0020005,91523.0,91522.0,0.8392422]
[1731992387269,0.0020005,91523.0,91522.0,0.8372422]
[1731992387383,0.0010005,91523.0,91522.0,0.8122422]
[1731992387617,0.0030005,91523.0,91522.0,0.8402422]
[1731992388815,0.0030005,91523.0,91522.0,0.8851081]
[1731992389652,0.0030005,91523.0,91522.0,0.76098145]
[1731992389823,0.0030005,91523.0,91522.0,0.8851081]
[1731992392289,5e-07,91523.0,91522.0,0.8851081]
[1731992392727,3e-07,91536.0,91535.0,0.111247]
[1731992392937,3e-07,91536.0,91535.0,0.7951762]
[1731992393826,3e-07,91536.0,91535.0,0.7931762]
[1731992394060,3e-07,91536.0,91535.0,0.7951762]
[1731992394763,3e-07,91536.0,91535.0,0.8101762]
[1731992395370,3e-07,91536.0,91535.0,0.8161762]
[1731992401747,3e-07,91536.0,91535.0,0.85964836]
[1731992403292,3e-07,91536.0,91535.0,0.85764836]
[1731992403505,3e-07,91536.0,91535.0,0.85964836]
[1731992404374,3e-07,91536.0,91535.0,0.84464836]
[1731992404852,3e-07,91536.0,91535.0,0.86664836]
[1731992405052,3e-07,91536.0,91535.0,0.83864836]
[1731992405292,3e-07,91536.0,91535.0,0.85464836]
[1731992405510,3e-07,91536.0,91535.0,0.75852171]
[1731992405723,0.1305003,91536.0,91535.0,0.63552171]
[1731992405927,0.1305003,91536.0,91535.0,0.63352171]
[1731992406144,0.1305003,91536.0,91535.0,0.61752171]
[1731992406354,0.1305003,91536.0,91535.0,0.61952171]
[1731992406570,0.1305003,91536.0,91535.0,0.64752171]
[1731992406985,0.1305003,91536.0,91535.0,0.61952171]
[1731992407194,0.1305003,91536.0,91535.0,0.74252171]
[1731992407315,0.1305003,91536.0,91535.0,0.77052171]
[1731992407530,0.1305003,91536.0,91535.0,0.74252171]
[1731992407866,0.1305003,91536.0,91535.0,0.74052171]
[1731992408114,0.1305003,91536.0,91535.0,0.75652171]
[1731992408678,0.1305003,91536.0,91535.0,0.71452171]
[1731992408853,0.1305003,91536.0,91535.0,0.72552171]
[1731992409062,0.1305003,91536.0,91535.0,0.74752171]
[1731992410045,0.1305003,91536.0,91535.0,0.74952171]
[1731992410667,0.1305003,91536.0,91535.0,0.74752171]
[1731992413721,0.1305003,91536.0,91535.0,0.72452171]
[1731992413948,0.1305003,91536.0,91535.0,0.61716756]
[1731992414785,0.1305003,91536.0,91535.0,0.5736954]
[1731992415827,0.1305003,91536.0,91535.0,0.5626954]
[1731992416037,0.1305003,91536.0,91535.0,0.5736954]
[1731992416452,0.1305003,91536.0,91535.0,0.4736954]
[1731992416675,0.1305003,91536.0,91535.0,0.4496954]
[1731992416846,0.1305003,91536.0,91535.0,0.4576954]
[1731992417278,0.1509292,91536.0,91535.0,0.4576954]
[1731992417478,0.1305003,91536.0,91535.0,0.4576954]
[1731992417875,0.1305003,91536.0,91535.0,0.54775795]
[1731992418086,0.1305003,91536.0,91535.0,0.56475795]
[1731992418496,0.1305003,91536.0,91535.0,0.4556954]
[1731992418698,0.1305003,91536.0,91535.0,0.4446954]
[1731992419035,0.1305003,91536.0,91535.0,0.4456954]
[1731992419478,0.1405003,91536.0,91535.0,0.4456954]
[1731992419679,0.16091857,91536.0,91535.0,0.4456954]
[1731992420178,0.16091857,91536.0,91535.0,0.3364484]
[1731992420179,0.1505003,91536.0,91535.0,0.3364484]
[1731992420386,0.17091449,91536.0,91535.0,0.3364484]
[1731992420813,0.17091532,91536.0,91535.0,0.3364484]
[1731992421063,0.17091532,91536.0,91535.0,0.4456954]
[1731992421957,0.1505003,91536.0,91535.0,0.4456954]
[1731992422394,0.17090409,91536.0,91535.0,0.4456954]
[1731992423220,0.2597463,91536.0,91535.0,0.3364484]
[1731992423410,0.28014808,91536.0,91535.0,0.2083484]
[1731992424175,0.28014808,91536.0,91535.0,0.2073484]
[1731992424382,0.28014808,91536.0,91535.0,0.2013484]
[1731992424788,0.28114808,91536.0,91535.0,0.2013484]
[1731992425242,0.28114808,91536.0,91535.0,0.2023484]
[1731992426246,0.28014808,91536.0,91535.0,0.2023484]
[1731992426455,0.28114808,91536.0,91535.0,0.2043484]
[1731992427127,0.16190208,91536.0,91535.0,0.2043484]
[1731992427336,0.1515003,91536.0,91535.0,0.2043484]
[1731992427762,0.1415003,91536.0,91535.0,0.2043484]
[1731992427965,0.1415003,91536.0,91535.0,0.2033484]
[1731992428508,0.1515003,91536.0,91535.0,0.2043484]
[1731992428738,0.1415003,91536.0,91535.0,0.2043484]
[1731992429152,0.1515003,91536.0,91535.0,0.3135954]
[1731992429396,0.1515003,91536.0,91535.0,0.2043484]
[1731992429797,0.1505003,91536.0,91535.0,0.2013484]
[1731992430227,0.1515003,91536.0,91535.0,0.2023484]
[1731992431534,0.1505003,91536.0,91535.0,0.2023484]
[1731992431764,0.1515003,91536.0,91535.0,0.2033484]
[1731992432888,0.1515003,91536.0,91535.0,0.2023484]
[1731992433343,0.17188211,91536.0,91535.0,0.2033484]
[1731992433559,0.1515003,91536.0,91535.0,0.2033484]
[1731992433782,0.17188211,91536.0,91535.0,0.2033484]
[1731992434028,0.1515003,91536.0,91535.0,0.2033484]
[1731992434229,0.17188211,91536.0,91535.0,0.2033484]
[1731992436179,0.28112811,91536.0,91535.0,0.2033484]
[1731992438100,0.28115769,91536.0,91535.0,0.2033484]
[1731992438772,0.31381982,91536.0,91535.0,0.2033484]
[1731992439183,0.31131982,91536.0,91535.0,0.2033484]
[1731992439855,0.2582463,91536.0,91535.0,0.2033484]
[1731992440073,0.31132876,91536.0,91535.0,0.2033484]
[1731992440288,0.44039131,91536.0,91535.0,0.2033484]
[1731992440508,0.44039131,91536.0,91535.0,0.1252484]
[1731992440509,0.54039131,91536.0,91535.0,0.1252484]
[1731992441556,0.54039131,91536.0,91535.0,0.1242484]
[1731992441557,0.53939131,91536.0,91535.0,0.1242484]
[1731992441759,0.53940091,91536.0,91535.0,0.1242484]
[1731992442209,0.53940091,91536.0,91535.0,0.1232484]
[1731992442868,0.63720232,91536.0,91535.0,0.1232484]
[1731992443067,0.63820232,91536.0,91535.0,0.1262484]
[1731992443294,0.54040091,91536.0,91535.0,0.1262484]
[1731992443572,0.63820232,91536.0,91535.0,0.1262484]
[1731992443790,0.54040091,91536.0,91535.0,0.1262484]
[1731992445295,0.54039688,91536.0,91535.0,0.1262484]
[1731992445721,0.50772732,91536.0,91535.0,0.1262484]
[1731992447682,0.63185397,91536.0,91535.0,0.04787775]
[1731992447888,0.63185397,91536.0,91522.0,0.0017086]
[1731992447889,0.275962,91523.0,91522.0,0.0017086]
[1731992448102,0.52956967,91523.0,91522.0,0.0017086]
[1731992448824,0.66224661,91523.0,91522.0,0.0017086]
[1731992449504,0.66224661,91523.0,91522.0,0.0027086]
[1731992450618,0.01,91497.0,91496.0,0.2980475]
[1731992451916,0.012,91497.0,91496.0,0.3130475]
[1731992452572,0.012,91497.0,91496.0,0.33012244]
[1731992453196,0.014,91497.0,91496.0,0.35012244]
[1731992459446,0.014,91497.0,91496.0,0.3330475]
[1731992460482,0.014,91497.0,91496.0,0.6609275]
[1731992460698,0.014,91497.0,91496.0,0.6626367]
[1731992462735,0.10526489,91497.0,91496.0,0.3645892]
[1731992462957,0.024,91497.0,91496.0,0.4738832]
[1731992466236,0.024,91497.0,91496.0,0.3645892]
[1731992466450,0.1001,91497.0,91496.0,0.3645892]
[1731992467158,0.33815789,91497.0,91496.0,0.3645892]
[1731992468487,0.54892419,91497.0,91496.0,0.3645892]
[1731992468698,0.4676593,91497.0,91496.0,0.3645892]
[1731992469609,0.4656593,91497.0,91496.0,0.3445892]
[1731992469829,0.4636593,91497.0,91496.0,0.3295892]
[1731992470049,0.4896593,91497.0,91496.0,0.3325892]
[1731992471393,0.58092419,91497.0,91496.0,0.3325892]
[1731992471824,0.4996593,91497.0,91496.0,0.3325892]
[1731992472033,0.5005142,91497.0,91496.0,0.3325892]
[1731992472241,0.4905142,91497.0,91496.0,0.3325892]
[1731992472455,0.4905142,91497.0,91496.0,0.34966604]
[1731992472868,0.5005142,91497.0,91496.0,0.34966604]
[1731992474273,0.69177909,91497.0,91496.0,0.34966604]
[1731992475144,0.69177984,91497.0,91496.0,0.34966604]
[1731992475985,0.71585491,91497.0,91496.0,0.34866604]
[1731992476447,0.68725999,91497.0,91496.0,0.34966604]
[1731992476656,0.68725999,91497.0,91496.0,0.34766604]
[1731992476657,0.67125999,91497.0,91496.0,0.34766604]
[1731992476916,0.66125999,91497.0,91496.0,0.34666604]
[1731992477127,0.68025999,91497.0,91496.0,0.34966604]
[1731992477335,0.69225999,91497.0,91496.0,0.34966604]
[1731992477751,0.68025999,91497.0,91496.0,0.34866604]
[1731992477991,0.71293399,91497.0,91496.0,0.3315892]
[1731992478387,0.69393399,91497.0,91496.0,0.3295892]
[1731992478601,0.69390068,91497.0,91496.0,0.3295892]
[1731992478814,0.70390068,91497.0,91496.0,0.3295892]
[1731992479052,0.69390068,91497.0,91496.0,0.3295892]
[1731992479250,0.72090068,91497.0,91496.0,0.3295892]
[1731992479834,0.74190068,91497.0,91496.0,0.3305892]
[1731992480249,0.266125,91470.0,91469.0,0.16445655]
[1731992480473,0.51953791,91470.0,91469.0,0.16445655]
[1731992480700,0.01,91458.0,91455.0,0.109342]
[1731992480887,0.01,91458.0,91449.0,0.2187]
[1731992480888,0.0204155,91457.0,91449.0,0.2187]
[1731992481089,0.01,91458.0,91454.0,0.218689]
[1731992481290,0.01,91458.0,91449.0,0.2187]
[1731992481291,0.01,91458.0,91457.0,0.109341]
[1731992482485,0.013,91458.0,91457.0,0.12642372]
[1731992482693,0.21866,91466.0,91457.0,0.12642372]
[1731992482898,0.109333,91464.0,91457.0,0.109341]
[1731992483104,0.005,91458.0,91457.0,0.009]
[1731992483328,0.015,91458.0,91457.0,0.009]
[1731992483520,0.015,91458.0,91457.0,0.0107098]
[1731992483763,0.013,91458.0,91457.0,0.0107098]
[1731992484172,0.013,91458.0,91457.0,0.0267098]
[1731992484527,0.013,91458.0,91457.0,0.0107098]
[1731992485932,0.015,91458.0,91457.0,0.0267098]
[1731992486778,0.015,91458.0,91457.0,0.1360508]
[1731992487254,0.005,91458.0,91457.0,0.1360508]
[1731992487461,0.005,91458.0,91457.0,0.1841508]
[1731992488569,0.005,91458.0,91457.0,0.2667508]
[1731992488766,0.005,91458.0,91457.0,0.28383343]
[1731992490903,0.005,91458.0,91457.0,0.61185343]
[1731992491673,0.01,91465.0,91464.0,0.109332]
[1731992491874,0.01,91465.0,91464.0,0.437332]
[1731992492707,0.01,91465.0,91464.0,0.447332]
[1731992492942,0.011,91465.0,91464.0,0.447332]
[1731992493695,0.001,91465.0,91464.0,0.338]
[1731992493880,0.001,91465.0,91464.0,0.447332]
[1731992494097,0.001,91465.0,91464.0,0.461332]
[1731992494098,0.003,91465.0,91464.0,0.461332]
[1731992495172,0.0038553,91465.0,91464.0,0.461332]
[1731992500071,0.0138553,91465.0,91464.0,0.352]
[1731992500273,0.0138553,91465.0,91464.0,0.461332]
[1731992500481,0.0138553,91465.0,91464.0,0.352]
[1731992500814,0.0138553,91465.0,91464.0,0.461332]
[1731992501023,0.03429173,91465.0,91464.0,0.461332]
[1731992501631,0.02429173,91465.0,91464.0,0.461332]
[1731992502096,0.0038553,91465.0,91464.0,0.461332]
[1731992503259,0.0038553,91465.0,91464.0,0.451332]
[1731992503260,0.0028553,91465.0,91464.0,0.451332]
[1731992503901,0.0008553,91465.0,91464.0,0.437332]
[1731992504387,0.0028553,91465.0,91464.0,0.450332]
[1731992504594,0.0038553,91465.0,91464.0,0.461332]
[1731992505023,0.0018553,91465.0,91464.0,0.448332]
[1731992505238,0.0028553,91465.0,91464.0,0.450332]
[1731992505704,0.0018553,91465.0,91464.0,0.447332]
[1731992506127,0.0008553,91465.0,91464.0,0.588832]
[1731992506362,0.0018553,91465.0,91464.0,0.599832]
[1731992506570,0.0018553,91465.0,91464.0,0.70889455]
[1731992506991,0.0038553,91465.0,91464.0,0.72389455]
[1731992507229,0.0018553,91465.0,91464.0,0.75639828]
[1731992507375,0.0018553,91465.0,91464.0,0.76939828]
[1731992507594,0.0028553,91465.0,91464.0,0.75839828]
[1731992507807,0.0008553,91465.0,91464.0,0.74539828]
[1731992508053,0.0038553,91465.0,91464.0,0.75839828]
[1731992508363,0.0038553,91465.0,91464.0,0.75139828]
[1731992508576,0.0048553,91465.0,91464.0,0.76439828]
[1731992508796,0.0078553,91465.0,91464.0,0.76439828]
[1731992509011,0.0078553,91465.0,91464.0,0.75839828]
[1731992509012,0.0068553,91465.0,91464.0,0.75839828]
[1731992509236,0.0088553,91465.0,91464.0,0.77839828]
[1731992509887,0.0028553,91465.0,91464.0,0.76339828]
[1731992510337,0.0038553,91465.0,91464.0,0.79139828]
[1731992510545,0.0008553,91465.0,91464.0,0.74339828]
[1731992510953,0.0028553,91465.0,91464.0,0.78839828]
[1731992511383,0.0018553,91465.0,91464.0,0.77139828]
[1731992511792,0.0028553,91465.0,91464.0,0.78739828]
[1731992513113,0.0028553,91465.0,91464.0,0.78939828]
[1731992514002,0.0028553,91465.0,91464.0,0.78739828]
[1731992516013,0.0028553,91465.0,91464.0,0.88939828]
[1731992516236,0.0028553,91465.0,91464.0,0.88739828]
[1731992517117,0.0028553,91465.0,91464.0,0.88939828]
[1731992517319,0.0028553,91465.0,91464.0,0.88739828]
[1731992517528,0.03271518,91490.0,91489.0,0.109302]
[1731992517753,0.16445655,91494.0,91493.0,0.109297]
[1731992518182,0.0008549,91497.0,91496.0,0.109294]
[1731992519076,0.0008549,91497.0,91496.0,0.437174]
[1731992520411,0.0018549,91497.0,91496.0,0.450174]
[1731992520614,0.0008549,91497.0,91496.0,0.440174]
[1731992520829,0.0008549,91497.0,91496.0,0.437174]
[1731992521036,0.0008549,91497.0,91496.0,0.444174]
[1731992521255,0.0008549,91497.0,91496.0,0.438174]
[1731992521681,0.0008549,91497.0,91496.0,0.437174]
[1731992522015,0.0008549,91497.0,91496.0,0.439174]
[1731992522425,0.0008549,91497.0,91496.0,0.462174]
[1731992522651,0.0008549,91497.0,91496.0,0.470174]
[1731992522866,0.0008549,91497.0,91496.0,0.462174]
[1731992523070,0.0008549,91497.0,91496.0,0.468174]
[1731992523514,0.0008549,91497.0,91496.0,0.460174]
[1731992523730,0.0008549,91497.0,91496.0,0.469174]
[1731992523904,0.0008549,91497.0,91496.0,0.461174]
[1731992524328,0.0008549,91497.0,91496.0,0.464174]
[1731992525402,0.0008549,91497.0,91496.0,0.441174]
[1731992525592,0.0108549,91497.0,91496.0,0.33188]
[1731992526224,0.03123692,91497.0,91496.0,0.33188]
[1731992526433,0.03123692,91497.0,91496.0,0.441174]
[1731992526680,0.03123692,91497.0,91496.0,0.33188]
[1731992527064,0.03123692,91497.0,91496.0,0.441174]
[1731992528544,0.0108549,91497.0,91496.0,0.441174]
[1731992530815,0.03124188,91497.0,91496.0,0.33188]
[1731992531537,0.03124188,91497.0,91496.0,0.441174]
[1731992532411,0.03124188,91497.0,91496.0,0.33188]
[1731992532826,0.03125105,91497.0,91496.0,0.33188]
[1731992534425,0.06388489,91497.0,91496.0,0.33188]
[1731992535135,0.11088489,91497.0,91496.0,0.33188]
[1731992535345,0.22017789,91497.0,91496.0,0.33188]
[1731992535563,0.11088489,91497.0,91496.0,0.33188]
[1731992536013,0.11088489,91497.0,91496.0,0.440174]
[1731992536219,0.0658549,91497.0,91496.0,0.440174]
[1731992536462,0.11891996,91497.0,91496.0,0.440174]
[1731992536699,0.11891996,91497.0,91496.0,0.437174]
[1731992536700,0.05391996,91497.0,91496.0,0.437174]
[1731992536906,0.0008549,91497.0,91496.0,0.437174]
[1731992537113,0.0108549,91497.0,91496.0,0.438174]
[1731992537549,0.0008549,91497.0,91496.0,0.437174]
[1731992537781,0.0008549,91497.0,91496.0,0.443174]
[1731992537990,0.0108549,91497.0,91496.0,0.61873655]
[1731992538216,0.0108549,91497.0,91496.0,0.80583655]
[1731992538417,0.16445655,91509.0,91496.0,0.80583655]
[1731992538418,0.16445655,91509.0,91508.0,0.13428]
[1731992538637,0.16445655,91509.0,91508.0,0.24334255]
[1731992538894,0.16445655,91509.0,91508.0,0.57118255]
[1731992539093,0.17445655,91523.0,91509.0,0.023]
[1731992539310,0.17445655,91523.0,91522.0,0.109263]
[1731992539695,0.03039345,91523.0,91522.0,0.109263]
[1731992539933,0.01,91518.0,91515.0,0.218542]
[1731992540163,0.01,91518.0,91517.0,0.109269]
[1731992540385,0.03039511,91518.0,91517.0,0.109269]
[1731992540608,0.02039511,91518.0,91517.0,0.437079]
[1731992541025,0.5379,91529.0,91528.0,0.109256]
[1731992541228,0.0530171,91529.0,91528.0,0.109256]
[1731992541683,0.5909171,91529.0,91528.0,0.109256]
[1731992542100,0.6009171,91529.0,91528.0,0.109256]
[1731992542517,0.5909171,91529.0,91528.0,0.109256]
[1731992542876,0.5379,91529.0,91528.0,0.437026]
[1731992543104,0.05300069,91529.0,91528.0,0.18778834]
[1731992543308,0.55828488,91529.0,91528.0,0.29704434]
[1731992543509,0.56928488,91529.0,91528.0,0.29804434]
[1731992544716,0.56928488,91529.0,91528.0,0.55296779]
[1731992544717,0.55828488,91529.0,91528.0,0.55296779]
[1731992544922,0.5379,91529.0,91528.0,0.55296779]
[1731992545360,0.55827728,91529.0,91528.0,0.55296779]
[1731992545572,0.5379,91529.0,91528.0,0.55296779]
[1731992545778,0.5409,91529.0,91528.0,0.55296779]
[1731992546188,0.5379,91529.0,91528.0,0.55296779]
[1731992546421,0.01,91529.0,91528.0,0.55396779]
[1731992546647,0.5379,91535.0,91528.0,0.47171179]
[1731992546859,0.02036605,91534.0,91533.0,0.10925]
[1731992547085,0.0008542,91536.0,91535.0,0.109247]
[1731992547711,0.0008542,91536.0,91535.0,0.576967]
[1731992548520,0.0008542,91536.0,91535.0,0.80989045]
[1731992548729,0.0008542,91536.0,91535.0,0.83289045]
[1731992549396,0.0008542,91536.0,91535.0,0.90889045]
[1731992549820,0.0008542,91536.0,91535.0,0.91989045]
[1731992549980,0.0008542,91536.0,91535.0,0.91389045]
[1731992550405,0.0008542,91536.0,91535.0,0.92189045]
[1731992550644,0.0008542,91536.0,91535.0,0.91089045]
[1731992551038,0.5397542,91536.0,91535.0,0.93389045]
[1731992551530,0.5387542,91536.0,91535.0,0.91089045]
[1731992551979,0.5387542,91536.0,91535.0,0.80102955]
[1731992552401,0.5387542,91536.0,91535.0,0.78702955]
[1731992552828,0.5387542,91536.0,91535.0,0.80102955]
[1731992553034,0.5397542,91536.0,91535.0,0.82402955]
[1731992553501,0.0018542,91536.0,91535.0,0.82402955]
[1731992554764,0.0018542,91536.0,91535.0,0.74602955]
[1731992554965,0.0018542,91536.0,91535.0,0.73202955]
[1731992555411,0.0018542,91536.0,91535.0,0.74602955]
[1731992555885,0.0008542,91536.0,91535.0,0.70902955]
[1731992556089,0.0008542,91536.0,91535.0,0.72302955]
[1731992556293,0.0018542,91536.0,91535.0,0.74602955]
[1731992556504,0.0018542,91536.0,91535.0,0.73202955]
[1731992556964,0.0018542,91536.0,91535.0,0.74602955]
[1731992557629,0.0018542,91536.0,91535.0,0.98002955]
[1731992557630,2e-07,91536.0,91535.0,0.98002955]
[1731992557838,2e-07,91536.0,91535.0,0.98202955]
[1731992558483,2e-07,91536.0,91535.0,0.96802955]
[1731992558690,2e-07,91536.0,91535.0,0.99402955]
[1731992559127,2e-07,91536.0,91535.0,0.96802955]
[1731992559540,2e-07,91536.0,91535.0,0.99602955]
[1731992559964,2e-07,91536.0,91535.0,0.96802955]
[1731992560391,0.16445655,91548.0,91542.0,0.244239]
[1731992560602,0.16445655,91548.0,91542.0,0.94486245]
[1731992561056,0.16445655,91548.0,91542.0,0.94286245]
[1731992561698,0.16445655,91548.0,91542.0,0.94486245]
[1731992561921,0.0004,91549.0,91542.0,0.97086245]
[1731992562169,0.0004,91549.0,91542.0,0.99786245]
[1731992562421,0.0004,91549.0,91542.0,0.99986245]
[1731992563073,6e-07,91549.0,91548.0,0.244232]
[1731992563284,6e-07,91549.0,91548.0,0.94797455]
[1731992564422,6e-07,91549.0,91548.0,0.97597455]
[1731992564628,6e-07,91549.0,91548.0,0.96797455]
[1731992565036,6e-07,91549.0,91548.0,0.97597455]
[1731992565452,6e-07,91549.0,91548.0,1.00397455]
[1731992565901,6e-07,91549.0,91548.0,0.97597455]
[1731992566118,6e-07,91549.0,91548.0,1.00397455]
[1731992566954,6e-07,91549.0,91548.0,0.97597455]
[1731992567160,6e-07,91549.0,91548.0,1.00397455]
[1731992567362,6e-07,91549.0,91548.0,0.94797455]
[1731992567779,6e-07,91549.0,91548.0,1.00397455]
[1731992569481,6e-07,91549.0,91548.0,0.97597455]
[1731992569948,6e-07,91549.0,91548.0,0.94797455]
[1731992570397,6e-07,91549.0,91548.0,0.97597455]
[1731992570606,6e-07,91549.0,91548.0,0.94797455]
[1731992570812,6e-07,91549.0,91548.0,0.97597455]
[1731992570992,6e-07,91549.0,91548.0,1.00397455]
[1731992571275,6e-07,91549.0,91548.0,0.97597455]
[1731992571482,6e-07,91549.0,91548.0,1.00397455]
[1731992576298,6e-07,91549.0,91548.0,0.97597455]
[1731992576499,6e-07,91549.0,91548.0,1.00397455]
[1731992576914,6e-07,91549.0,91548.0,0.97597455]
[1731992577122,9e-07,91557.0,91556.0,0.244222]
[1731992577343,3e-07,91561.0,91560.0,0.244217]
[1731992577527,3e-07,91561.0,91560.0,0.82090955]
[1731992578896,3e-07,91561.0,91560.0,0.95010955]
[1731992579321,3e-07,91569.0,91568.0,0.012]
[1731992579546,3e-07,91569.0,91568.0,0.47713145]
[1731992579766,3e-07,91569.0,91568.0,0.94474145]
[1731992580667,3e-07,91569.0,91568.0,0.97274145]
[1731992580893,3e-07,91569.0,91568.0,0.94474145]
[1731992581097,3e-07,91569.0,91568.0,1.00074145]
[1731992581526,3e-07,91569.0,91568.0,0.94274145]
[1731992582474,3e-07,91569.0,91568.0,0.97074145]
[1731992582694,3e-07,91569.0,91568.0,0.97274145]
[1731992583111,3e-07,91569.0,91568.0,0.97074145]
[1731992583318,3e-07,91569.0,91568.0,0.94274145]
[1731992583528,0.16409514,91579.0,91578.0,0.3580569]
[1731992583736,0.16409514,91579.0,91578.0,0.46511945]
[1731992583960,0.0787,91586.0,91578.0,0.46511945]
[1731992583961,0.0787,91586.0,91585.0,0.109188]
[1731992584207,0.0455,91590.0,91585.0,0.72346345]
[1731992584409,0.0455,91590.0,91588.0,0.109184]
[1731992584611,0.0455,91590.0,91588.0,0.24124655]
[1731992584824,0.0455,91590.0,91588.0,0.70877655]
[1731992585518,0.0455,91590.0,91588.0,0.599714]
[1731992585763,0.0769549,91589.0,91588.0,0.576714]
[1731992587072,0.0769549,91589.0,91588.0,0.594714]
[1731992587276,0.0769549,91589.0,91588.0,0.606714]
[1731992591260,0.1324549,91589.0,91588.0,0.49753]
[1731992591661,0.1324549,91589.0,91588.0,0.606714]
[1731992591896,0.1224549,91589.0,91588.0,0.606714]
[1731992592120,0.1324549,91589.0,91588.0,0.606714]
[1731992592329,0.1324549,91589.0,91588.0,0.594714]
[1731992592557,0.1324549,91589.0,91588.0,0.48553]
[1731992592808,0.1324549,91589.0,91588.0,0.49853]
[1731992593057,0.1324549,91589.0,91588.0,0.48053]
[1731992593266,0.1324549,91589.0,91588.0,0.48753]
[1731992593493,0.1324549,91589.0,91588.0,0.46753]
[1731992593724,0.1324549,91589.0,91588.0,0.28228098]
[1731992594189,0.1324549,91589.0,91588.0,0.28428098]
[1731992594416,0.1324549,91589.0,91588.0,0.28228098]
[1731992594861,0.1344549,91589.0,91588.0,0.28228098]
[1731992598013,0.1344549,91589.0,91588.0,0.39146498]
[1731992598683,0.1344549,91589.0,91588.0,0.28228098]
[1731992599563,0.1344549,91589.0,91588.0,0.39146498]
[1731992599790,0.1324549,91589.0,91588.0,0.39146498]
[1731992600028,0.1334549,91589.0,91588.0,0.39146498]
[1731992600485,0.1324549,91589.0,91588.0,0.28228098]
[1731992600696,0.1334549,91589.0,91588.0,0.28228098]
[1731992600899,0.1324549,91589.0,91588.0,0.28228098]
[1731992601108,0.1324549,91589.0,91588.0,0.39146498]
[1731992601334,0.1334549,91589.0,91588.0,0.39146498]
[1731992602217,0.1334549,91589.0,91588.0,0.28228098]
[1731992609057,0.15386932,91589.0,91588.0,0.28228098]
[1731992610454,0.1334549,91589.0,91588.0,0.28228098]
[1731992610675,0.15386973,91589.0,91588.0,0.39146498]
[1731992611105,0.15386973,91589.0,91588.0,0.28228098]
[1731992612515,0.15386973,91589.0,91588.0,0.39146498]
[1731992612718,0.15386973,91589.0,91588.0,0.28228098]
[1731992613126,0.15386973,91589.0,91588.0,0.28399018]
[1731992613684,0.15286973,91589.0,91588.0,0.28399018]
[1731992613889,0.15386973,91589.0,91588.0,0.28399018]
[1731992615608,0.15386973,91589.0,91588.0,0.39317418]
[1731992616025,0.14386973,91589.0,91588.0,0.39317418]
[1731992616468,0.03266973,91589.0,91588.0,0.39317418]
[1731992617110,0.0122549,91589.0,91588.0,0.39317418]
[1731992617747,0.0112549,91589.0,91588.0,0.39317418]
[1731992617958,0.0122549,91589.0,91588.0,0.39317418]
[1731992618364,0.02269132,91589.0,91588.0,0.39317418]
[1731992618794,0.0022549,91589.0,91588.0,0.39317418]
[1731992619210,0.0012549,91589.0,91588.0,0.39317418]
[1731992619425,0.0012549,91589.0,91588.0,0.50223673]
[1731992619643,0.0012549,91589.0,91588.0,0.59063673]
[1731992620495,0.0012549,91589.0,91588.0,0.60163673]
[1731992620721,0.0012549,91589.0,91588.0,0.64517166]
[1731992620947,0.0012549,91589.0,91588.0,0.61817166]
[1731992621187,0.0012549,91589.0,91588.0,0.63017166]
[1731992621393,0.0012549,91589.0,91588.0,0.63117166]
[1731992621844,0.0012549,91589.0,91588.0,0.65117166]
[1731992622489,0.0012549,91589.0,91588.0,0.77468768]
[1731992626683,0.0012549,91589.0,91588.0,0.77468768]
[1731992627141,0.0012549,91589.0,91588.0,0.60177166]
[1731992627368,0.0012549,91589.0,91588.0,0.46970911]
[1731992627807,0.0012549,91589.0,91588.0,0.42617418]
[1731992628033,0.0112549,91589.0,91588.0,0.42617418]
[1731992629128,0.0012549,91589.0,91588.0,0.42617418]
[1731992630007,0.0012549,91589.0,91588.0,0.13772204]
[1731992630433,0.0112549,91589.0,91588.0,0.13772204]
[1731992630663,0.0112549,91589.0,91588.0,0.46527204]
[1731992630926,0.0112549,91589.0,91588.0,0.36055]
[1731992631174,0.0583549,91589.0,91588.0,0.439734]
[1731992632267,0.0583549,91589.0,91588.0,0.436734]
[1731992632478,0.0583549,91589.0,91588.0,0.448734]
[1731992633540,0.0583549,91589.0,91588.0,0.449734]
[1731992633981,0.0583549,91589.0,91588.0,0.437734]
[1731992634193,0.0653549,91589.0,91588.0,0.437734]
[1731992634399,0.0182549,91589.0,91588.0,0.437734]
[1731992635491,0.0112549,91589.0,91588.0,0.436734]
[1731992635935,0.00899945,91589.0,91588.0,0.442734]
[1731992636562,0.01199945,91589.0,91588.0,0.4444432]
[1731992636767,0.01285405,91589.0,91588.0,0.4444432]
[1731992637642,0.00985405,91589.0,91588.0,0.4384432]
[1731992638055,0.01485405,91589.0,91588.0,0.4394432]
[1731992638262,0.00985405,91589.0,91588.0,0.4384432]
[1731992638724,0.02085405,91589.0,91588.0,0.4394432]
[1731992640475,0.02285405,91589.0,91588.0,0.4394432]
[1731992645299,0.02085405,91589.0,91588.0,0.4394432]
[1731992645437,0.00985405,91589.0,91588.0,0.4384432]